bitfinex/quotes_BTCUSD_20240918
["timestamp","ask_amount","ask_price","bid_price","bid_amount"]
[1726685799936,0.0257125,61057.0,61033.0,0.02627629]
[1726685799937,0.03,61038.0,61033.0,0.02627629]
[1726685800126,0.03,61041.0,61037.0,0.1]
[1726685800384,0.03,61046.0,61041.0,0.123]
[1726685800663,0.03,61046.0,61042.0,0.0223]
[1726685800882,0.000821,61059.0,61046.0,0.123]
[1726685800883,0.0295,61049.0,61046.0,0.123]
[1726685801101,0.06,61048.0,61046.0,0.1]
[1726685801335,0.06,61048.0,61047.0,0.03291]
[1726685802023,0.06,61048.0,61046.0,0.1]
[1726685802258,0.06,61048.0,61047.0,0.03291]
[1726685802479,0.03,61048.0,61047.0,0.03291]
[1726685802723,0.0295,61049.0,61048.0,0.03291]
[1726685802724,0.0895,61049.0,61048.0,0.03291]
[1726685802986,0.0895,61043.0,61042.0,0.007]
[1726685803240,0.0295,61049.0,61033.0,0.00327586]
[1726685803479,0.03,61056.0,61052.0,0.163792]
[1726685803717,0.000821,61059.0,61052.0,0.163792]
[1726685803718,0.03,61057.0,61055.0,0.03291]
[1726685803935,0.03,61058.0,61057.0,0.03291]
[1726685804144,0.000821,61059.0,61058.0,0.614335]
[1726685804360,0.000821,61059.0,61058.0,0.38364943]
[1726685804629,0.000821,61059.0,61058.0,0.71120643]
[1726685804838,0.000821,61059.0,61058.0,0.82659942]
[1726685805052,0.000821,61059.0,61058.0,1.51462342]
[1726685805271,0.000821,61059.0,61058.0,1.84218042]
[1726685805481,0.000821,61059.0,61058.0,1.85201022]
[1726685806554,0.000821,61059.0,61058.0,1.85365022]
[1726685806769,0.000821,61059.0,61058.0,1.10583499]
[1726685806985,0.000821,61059.0,61058.0,0.61449999]
[1726685807411,0.000821,61059.0,61058.0,0.62849999]
[1726685807657,0.000821,61059.0,61058.0,0.60049999]
[1726685808069,0.000821,61059.0,61058.0,0.61449999]
[1726685808331,0.000821,61059.0,61058.0,1.51122099]
[1726685808548,0.00082,61070.0,61069.0,0.05591]
[1726685808765,0.00082,61070.0,61069.0,0.03291]
[1726685808766,0.06032,61070.0,61069.0,0.03291]
[1726685808883,0.09032,61070.0,61066.0,0.1]
[1726685809103,0.03,61068.0,61066.0,0.1]
[1726685809316,0.03,61067.0,61066.0,0.1]
[1726685809726,0.03,61063.0,61062.0,0.023]
[1726685809943,0.0595,61062.0,61061.0,0.03291]
[1726685810145,0.0595,61062.0,61061.0,0.57585999]
[1726685810355,0.0295,61062.0,61061.0,0.57585999]
[1726685810569,0.0895,61062.0,61061.0,0.63360999]
[1726685810987,0.0895,61062.0,61061.0,0.57585999]
[1726685811203,0.0895,61062.0,61061.0,0.58485999]
[1726685811406,0.05519915,61065.0,61061.0,0.58485999]
[1726685811633,0.02569915,61065.0,61064.0,0.524197]
[1726685811849,0.02569915,61065.0,61063.0,0.023]
[1726685811850,0.03032,61070.0,61069.0,0.05591]
[1726685812818,0.03,61068.0,61067.0,0.1]
[1726685813060,0.03032,61070.0,61069.0,0.038591]
[1726685813302,0.03032,61070.0,61064.0,0.1]
[1726685813303,0.03032,61070.0,61065.0,0.023]
[1726685813541,0.03032,61070.0,61069.0,0.029]
[1726685813784,0.03032,61070.0,61069.0,0.123]
[1726685813785,0.00082,61070.0,61069.0,0.123]
[1726685814020,0.03082,61070.0,61069.0,0.1]
[1726685814487,0.09032,61070.0,61069.0,0.1]
[1726685814692,0.0595,61069.0,61067.0,0.1]
[1726685814909,0.03,61060.0,61039.0,0.002]
[1726685815120,0.03,61059.0,61050.0,0.163797]
[1726685815354,0.03,61059.0,61044.0,0.327627]
[1726685815355,0.03,61059.0,61045.0,0.163811]
[1726685815588,0.03,61059.0,61047.0,0.327616]
[1726685815799,0.03,61059.0,61049.0,0.163801]
[1726685816015,0.03,61059.0,61052.0,0.44294999]
[1726685816440,0.11520081,61061.0,61057.0,0.1]
[1726685816663,0.11520081,61061.0,61056.0,0.163782]
[1726685816664,0.02570081,61061.0,61059.0,0.023]
[1726685816890,0.0295,61062.0,61061.0,0.023]
[1726685817130,0.0295,61062.0,61059.0,0.023]
[1726685817363,0.0295,61061.0,61060.0,0.1]
[1726685817570,0.0295,61061.0,61060.0,0.123]
[1726685818219,0.0895,61061.0,61060.0,0.1]
[1726685818434,0.03,61059.0,61058.0,0.00164]
[1726685818649,0.0895,61059.0,61058.0,0.00164]
[1726685819094,0.0295,61059.0,61058.0,0.00164]
[1726685819338,0.03,61059.0,61058.0,0.44458999]
[1726685819580,0.0895,61059.0,61058.0,0.45858999]
[1726685819844,0.0895,61059.0,61058.0,0.44458999]
[1726685820299,0.0895,61059.0,61058.0,0.00864]
[1726685820970,0.0102297,61079.0,61070.0,0.327493]
[1726685820971,0.0082297,61079.0,61070.0,0.327493]
[1726685821195,0.0082297,61079.0,61071.0,0.02627418]
[1726685821409,0.0382297,61079.0,61078.0,0.44294999]
[1726685821644,0.0382297,61079.0,61078.0,0.60667499]
[1726685821645,0.0082297,61079.0,61078.0,0.60667499]
[1726685821856,0.0082297,61079.0,61078.0,1.05712499]
[1726685822073,0.0082297,61079.0,61078.0,1.49028749]
[1726685822506,0.0082297,61079.0,61078.0,1.81773749]
[1726685822726,0.0082297,61079.0,61078.0,1.49028749]
[1726685822939,0.0082297,61079.0,61078.0,1.19574749]
[1726685823407,0.0082297,61079.0,61078.0,0.88229749]
[1726685823687,0.0082297,61079.0,61078.0,1.19574749]
[1726685823924,0.0082297,61079.0,61078.0,0.71857249]
[1726685824155,0.0082297,61079.0,61078.0,0.59885999]
[1726685824371,0.0082297,61079.0,61078.0,0.76258499]
[1726685824597,0.0082297,61079.0,61078.0,0.77658499]
[1726685825019,0.0082297,61079.0,61078.0,1.10403499]
[1726685825468,0.0082297,61079.0,61078.0,1.43148499]
[1726685825696,0.0082297,61079.0,61078.0,1.58057057]
[1726685825914,0.0082297,61079.0,61078.0,0.92567057]
[1726685826337,0.0082297,61079.0,61078.0,0.76194557]
[1726685826554,0.0082297,61079.0,61078.0,0.77594557]
[1726685826773,0.0082297,61079.0,61078.0,0.06991]
[1726685826977,0.03,61078.0,61074.0,0.03291]
[1726685827212,0.06,61078.0,61076.0,0.03291]
[1726685827668,0.06,61078.0,61077.0,0.47585999]
[1726685828319,0.0082297,61079.0,61077.0,0.63958699]
[1726685828539,0.06,61078.0,61077.0,0.44294999]
[1726685828758,0.0082297,61079.0,61078.0,0.123]
[1726685828989,0.0082297,61079.0,61078.0,0.628175]
[1726685829207,0.0082297,61079.0,61078.0,0.955625]
[1726685829436,0.0082297,61079.0,61078.0,1.283075]
[1726685829648,0.0082297,61079.0,61078.0,0.955625]
[1726685829858,0.0082297,61079.0,61078.0,1.11871058]
[1726685830090,0.0082297,61079.0,61078.0,1.44616058]
[1726685830325,0.0082297,61079.0,61078.0,1.10471058]
[1726685830530,0.0082297,61079.0,61078.0,1.43216058]
[1726685830975,0.0082297,61079.0,61078.0,1.10471058]
[1726685831214,0.0382297,61079.0,61078.0,0.263725]
[1726685831481,0.0382297,61079.0,61077.0,0.45694999]
[1726685831482,0.0682297,61079.0,61077.0,0.45694999]
[1726685831913,0.0682297,61079.0,61077.0,0.014]
[1726685831914,0.06,61078.0,61077.0,0.014]
[1726685832136,0.0082297,61079.0,61058.0,0.165417]
[1726685832137,0.03,61068.0,61058.0,0.165417]
[1726685832348,0.06,61068.0,61059.0,0.0492985]
[1726685832559,0.03,61059.0,61058.0,0.00164]
[1726685832772,0.06,61059.0,61058.0,0.00164]
[1726685832985,0.08570487,61059.0,61058.0,0.00164]
[1726685834033,0.08570487,61059.0,61058.0,0.00564]
[1726685834669,0.06,61059.0,61058.0,0.00564]
[1726685834872,0.03,61065.0,61058.0,0.050499]
[1726685835112,0.000821,61081.0,61058.0,0.050499]
[1726685835113,0.03,61069.0,61060.0,0.123]
[1726685835346,0.06,61077.0,61070.0,0.163744]
[1726685835560,0.000821,61081.0,61066.0,0.023]
[1726685835561,0.06,61075.0,61071.0,0.077699]
[1726685835767,0.06,61074.0,61069.0,0.1]
[1726685835985,0.06,61074.0,61058.0,0.06450285]
[1726685835986,0.03,61068.0,61064.0,0.44294999]
[1726685836222,0.03,61068.0,61058.0,0.00164]
[1726685836223,0.06,61065.0,61059.0,0.023]
[1726685836489,0.03,61061.0,61060.0,0.003]
[1726685836690,0.06,61064.0,61059.0,0.123]
[1726685837104,0.0082297,61079.0,61059.0,0.123]
[1726685837105,0.06,61068.0,61061.0,0.023]
[1726685837330,0.03,61075.0,61065.0,0.123]
[1726685837528,0.03,61072.0,61065.0,0.123]
[1726685837744,0.0082297,61079.0,61065.0,0.123]
[1726685837745,0.03,61066.0,61065.0,0.1]
[1726685837951,0.03,61065.0,61059.0,0.023]
[1726685838158,0.03,61065.0,61059.0,0.0582216]
[1726685838358,0.06,61065.0,61059.0,0.023]
[1726685838590,0.03,61061.0,61060.0,0.012]
[1726685838824,0.06,61065.0,61061.0,0.023]
[1726685839034,0.06,61065.0,61064.0,0.44294999]
[1726685839244,0.03,61062.0,61061.0,0.03291]
[1726685839904,0.06,61063.0,61061.0,0.03991]
[1726685840116,0.03,61063.0,61062.0,0.44294999]
[1726685840318,0.06,61069.0,61062.0,0.44294999]
[1726685840528,0.06,61069.0,61061.0,0.03291]
[1726685840529,0.06,61069.0,61068.0,0.44294999]
[1726685841416,0.02569957,61072.0,61071.0,0.1]
[1726685841417,0.06,61072.0,61071.0,0.1]
[1726685841621,0.19149597,61081.0,61072.0,0.023]
[1726685841622,0.06,61073.0,61072.0,0.023]
[1726685841843,0.06,61073.0,61062.0,0.03291]
[1726685841844,0.06,61063.0,61062.0,0.03291]
[1726685842060,0.06,61063.0,61062.0,0.04391]
[1726685842274,0.06,61063.0,61058.0,0.00164]
[1726685842507,0.06,61059.0,61058.0,0.00164]
[1726685843002,0.08570422,61059.0,61058.0,0.00164]
[1726685843228,0.09098591,61059.0,61058.0,0.00164]
[1726685843654,0.08898591,61059.0,61058.0,0.00164]
[1726685843877,0.08570422,61059.0,61058.0,0.00164]
[1726685844091,0.06,61059.0,61058.0,0.00164]
[1726685844945,0.061,61059.0,61058.0,0.00164]
[1726685845153,0.06,61059.0,61058.0,0.00164]
[1726685846727,0.061,61059.0,61058.0,0.00164]
[1726685847210,0.061,61059.0,61038.0,0.03291]
[1726685847211,0.06,61039.0,61038.0,0.03291]
[1726685847456,0.03,61032.0,61027.0,0.44294999]
[1726685847704,0.03,61030.0,61027.0,0.44294999]
[1726685847930,0.03,61026.0,61021.0,0.44294999]
[1726685848153,0.03,61026.0,61015.0,0.44294999]
[1726685848154,0.03,61023.0,61015.0,0.44294999]
[1726685848385,0.06,61023.0,61016.0,0.03291]
[1726685848620,0.06,61023.0,61015.0,0.46847716]
[1726685848621,0.03,61029.0,61025.0,0.03291]
[1726685848858,0.98329223,61049.0,61017.0,0.00327427]
[1726685848859,0.03,61043.0,61028.0,0.47585999]
[1726685849140,0.03,61045.0,61042.0,0.47585999]
[1726685849372,0.03,61048.0,61045.0,0.03291]
[1726685849610,0.03,61048.0,61047.0,0.03291]
[1726685849611,0.06,61048.0,61047.0,0.03291]
[1726685849839,0.06,61048.0,61047.0,0.05591]
[1726685850526,0.03,61032.0,61030.0,0.00986315]
[1726685850749,0.03,61032.0,61024.0,0.327737]
[1726685850952,0.03,61032.0,61025.0,0.0327737]
[1726685851160,0.03,61032.0,61026.0,0.163862]
[1726685851367,0.03,61032.0,61026.0,0.327727]
[1726685851582,0.03,61032.0,61031.0,0.47585999]
[1726685851791,0.02571134,61039.0,61031.0,0.47585999]
[1726685851792,0.03,61035.0,61033.0,0.03291]
[1726685852010,0.06,61035.0,61034.0,0.03291]
[1726685852640,0.03,61032.0,61031.0,0.45194999]
[1726685852853,0.02571134,61039.0,61031.0,0.45194999]
[1726685852854,0.06,61034.0,61031.0,0.44294999]
[1726685853072,0.03,61034.0,61031.0,0.44294999]
[1726685853300,0.06,61034.0,61031.0,0.44294999]
[1726685854043,0.06,61034.0,61030.0,0.03291]
[1726685854044,0.06,61034.0,61032.0,0.023]
[1726685854327,0.03,61030.0,61028.0,0.03266188]
[1726685854569,0.03,61030.0,61028.0,0.1]
[1726685855054,0.03,61029.0,61028.0,0.1]
[1726685855307,0.06,61023.0,60997.0,0.002]
[1726685855560,0.06,61023.0,61017.0,0.163886]
[1726685855772,0.06,61023.0,61018.0,0.0819462]
[1726685855987,0.06,61023.0,61015.0,0.163892]
[1726685856201,0.06,61023.0,61010.0,0.0010485]
[1726685856202,0.03,61019.0,61011.0,0.327806]
[1726685856415,0.03,61019.0,61018.0,0.1]
[1726685857148,0.06,61018.0,61017.0,0.014]
[1726685858087,0.03,61011.0,61010.0,0.0010485]
[1726685858585,0.03,61011.0,61010.0,0.0018096]
[1726685859066,0.06,61011.0,61010.0,0.0018096]
[1726685859581,0.06,61011.0,61010.0,0.0128096]
[1726685860048,0.06,61011.0,61010.0,0.0018096]
[1726685860305,0.06,61011.0,60996.0,0.00164]
[1726685860306,0.06,60997.0,60996.0,0.00164]
[1726685860589,0.25067497,60997.0,60996.0,0.00164]
[1726685861521,0.27640583,60997.0,60996.0,0.00164]
[1726685861746,0.27968752,60997.0,60996.0,0.00164]
[1726685862035,0.28368752,60997.0,60996.0,0.00164]
[1726685862276,0.28368752,60997.0,60996.0,0.00154]
[1726685862507,0.28368752,60997.0,60976.0,0.0039619]
[1726685862508,0.06,60995.0,60976.0,0.0039619]
[1726685862751,0.06528169,60995.0,60976.0,0.0039619]
[1726685863000,0.06,60990.0,60976.0,0.0039619]
[1726685863696,0.08573646,60990.0,60976.0,0.0039619]
[1726685863937,0.08573646,60990.0,60981.0,0.44294999]
[1726685864667,0.06,60990.0,60982.0,0.1]
[1726685865684,0.06,60990.0,60983.0,0.03291]
[1726685865880,0.073,60990.0,60989.0,0.002642]
[1726685866108,0.073,60990.0,60989.0,0.001642]
[1726685866109,0.06,60990.0,60989.0,0.001642]
[1726685866346,0.06,60990.0,60989.0,0.0447655]
[1726685866347,0.03,60990.0,60989.0,0.0447655]
[1726685866569,0.03,60990.0,60989.0,0.024642]
[1726685866779,0.06,60990.0,60989.0,0.057552]
[1726685867020,0.03,60990.0,60989.0,0.321515]
[1726685867239,0.06,60990.0,60989.0,0.157552]
[1726685867454,0.06,60990.0,60989.0,0.128642]
[1726685867709,0.06,60990.0,60989.0,0.005642]
[1726685867931,0.062,60990.0,60989.0,0.001642]
[1726685868145,0.06528169,60990.0,60989.0,0.001642]
[1726685868371,0.063,60990.0,60989.0,0.009642]
[1726685868611,0.063,60990.0,60980.0,0.00164]
[1726685868612,0.03,60981.0,60980.0,0.00164]
[1726685868829,0.03,60981.0,60976.0,0.0038619]
[1726685868830,0.06,60977.0,60976.0,0.0038619]
[1726685869566,0.06328169,60977.0,60976.0,0.0038619]
[1726685869730,0.06,60977.0,60976.0,0.0038619]
[1726685870379,0.06328169,60977.0,60976.0,0.0038619]
[1726685871530,0.06,60971.0,60958.0,0.0039619]
[1726685871976,0.06328169,60971.0,60958.0,0.0039619]
[1726685872816,0.07028169,60971.0,60958.0,0.0039619]
[1726685873239,0.10028169,60971.0,60958.0,0.0039619]
[1726685873447,0.062,60965.0,60958.0,0.0039619]
[1726685873683,0.25595666,60965.0,60964.0,0.00154]
[1726685874122,0.2817032,60965.0,60964.0,0.00154]
[1726685874344,0.2817032,60965.0,60958.0,0.0039619]
[1726685874345,0.09,60959.0,60958.0,0.0039619]
[1726685874574,0.25328169,60959.0,60958.0,0.0038619]
[1726685874811,0.06328169,60959.0,60958.0,0.0038619]
[1726685875033,0.06,60959.0,60958.0,0.0038619]
[1726685875690,0.072,60959.0,60958.0,0.0038619]
[1726685875906,0.09498296,60965.0,60964.0,0.196941]
[1726685876159,0.06,60976.0,60968.0,0.03291]
[1726685876384,0.032,61001.0,60968.0,0.1]
[1726685876385,0.06,60970.0,60968.0,0.1]
[1726685876848,0.06,60969.0,60958.0,0.01369578]
[1726685877089,0.03,60966.0,60959.0,0.05919035]
[1726685877302,0.03,60965.0,60959.0,0.05919035]
[1726685877725,0.19067497,60985.0,60964.0,0.296941]
[1726685877726,0.06,60971.0,60964.0,0.296941]
[1726685877932,0.19067497,60985.0,60965.0,0.1]
[1726685877933,0.06,60968.0,60965.0,0.1]
[1726685878361,0.06,60966.0,60965.0,0.1]
[1726685878583,0.06,60966.0,60959.0,0.08950331]
[1726685878584,0.03,60964.0,60959.0,0.024]
[1726685878793,0.03,60963.0,60959.0,0.023]
[1726685879014,0.05574075,60963.0,60959.0,0.023]
[1726685879232,0.08574075,60963.0,60959.0,0.023]
[1726685879443,0.06,60959.0,60958.0,0.0038619]
[1726685881447,0.06,60959.0,60948.0,0.00164]
[1726685881448,0.09,60949.0,60948.0,0.00164]
[1726685881674,0.88690665,60949.0,60948.0,0.00164]
[1726685882107,1.07873234,60949.0,60948.0,0.00164]
[1726685882323,0.25,60946.0,60945.0,0.001642]
[1726685882544,0.19,60946.0,60945.0,0.001642]
[1726685882764,0.192,60946.0,60945.0,0.001642]
[1726685882972,0.16,60946.0,60945.0,0.001642]
[1726685883205,0.19,60946.0,60945.0,0.001642]
[1726685883406,0.06,60946.0,60945.0,0.001542]
[1726685883849,0.06328169,60946.0,60945.0,0.001542]
[1726685884059,0.25528169,60946.0,60945.0,0.001542]
[1726685884292,0.19528169,60946.0,60945.0,0.001542]
[1726685884541,0.16528169,60946.0,60945.0,0.001542]
[1726685884767,0.25528169,60946.0,60945.0,0.001442]
[1726685884994,0.07728169,60946.0,60945.0,0.001442]
[1726685885227,0.07728169,60946.0,60934.0,0.0044494]
[1726685885228,0.09,60936.0,60934.0,0.0044494]
[1726685885463,0.25,60935.0,60934.0,0.0044494]
[1726685885684,0.25528169,60935.0,60934.0,0.0044494]
[1726685885901,0.16328169,60935.0,60934.0,0.0044494]
[1726685886123,0.25528169,60935.0,60934.0,0.0044494]
[1726685886796,0.16328169,60935.0,60934.0,0.0044494]
[1726685887004,0.19528169,60935.0,60934.0,0.0044494]
[1726685887224,0.18904343,60935.0,60934.0,0.0044494]
[1726685887454,0.21904343,60935.0,60934.0,0.0044494]
[1726685887687,0.22104343,60935.0,60934.0,0.0044494]
[1726685887926,0.29504343,60935.0,60934.0,0.0054494]
[1726685888147,0.29504343,60935.0,60934.0,0.0044494]
[1726685888148,0.28104343,60935.0,60934.0,0.0044494]
[1726685888418,0.28104343,60935.0,60928.0,0.00164]
[1726685888419,0.062,60929.0,60928.0,0.00164]
[1726685888663,0.66823168,60929.0,60928.0,0.00164]
[1726685888910,0.69823168,60929.0,60928.0,0.00164]
[1726685889135,0.69823168,60929.0,60928.0,0.00154]
[1726685890270,0.06,60929.0,60928.0,0.00144]
[1726685890503,0.06328169,60929.0,60928.0,0.00144]
[1726685890745,0.06,60929.0,60928.0,0.00144]
[1726685890988,0.074,60929.0,60928.0,0.00144]
[1726685891501,0.06,60929.0,60928.0,0.00144]
[1726685891766,0.074,60929.0,60928.0,0.00144]
[1726685891997,0.06,60929.0,60928.0,0.00144]
[1726685892477,0.014,60929.0,60928.0,0.00144]
[1726685892914,0.074,60929.0,60928.0,0.00144]
[1726685893566,0.06,60929.0,60928.0,0.00144]
[1726685893779,0.06,60930.0,60928.0,0.00144]
[1726685893993,0.02576174,60935.0,60931.0,0.023]
[1726685893994,0.06,60935.0,60931.0,0.023]
[1726685894211,0.06,60938.0,60936.0,0.164105]
[1726685894420,0.06,60938.0,60935.0,0.023]
[1726685894638,0.03,60931.0,60919.0,0.44294999]
[1726685894868,0.03,60931.0,60912.0,0.44294999]
[1726685894869,0.03,60929.0,60912.0,0.44294999]
[1726685895084,0.06,60929.0,60919.0,0.197061]
[1726685895295,0.06,60929.0,60921.0,0.03291]
[1726685895515,0.06,60929.0,60923.0,0.03291]
[1726685895731,0.03,60931.0,60925.0,0.03291]
[1726685895951,0.03,60930.0,60927.0,0.03291]
[1726685896182,0.06,60931.0,60927.0,0.03291]
[1726685896868,0.06,60929.0,60924.0,0.01005474]
[1726685897084,0.06,60934.0,60926.0,0.328264]
[1726685897300,0.06,60937.0,60932.0,0.1]
[1726685897734,0.00328169,60948.0,60932.0,0.1]
[1726685897735,0.06,60933.0,60932.0,0.1]
[1726685898165,0.06,60929.0,60928.0,0.00344]
[1726685898583,0.06,60929.0,60928.0,0.00144]
[1726685899018,0.06328169,60929.0,60928.0,0.00144]
[1726685899255,0.25328169,60929.0,60928.0,0.00144]
[1726685899479,0.25428169,60929.0,60928.0,0.00144]
[1726685899686,0.061,60929.0,60928.0,0.00144]
[1726685899901,0.09428169,60929.0,60928.0,0.00144]
[1726685900099,0.22428169,60929.0,60928.0,0.00144]
[1726685900345,0.28004401,60929.0,60928.0,0.00144]
[1726685900570,0.28004401,60929.0,60928.0,0.00134]
[1726685900571,0.40846401,60929.0,60928.0,0.00134]
[1726685900786,0.18576232,60929.0,60928.0,0.00124]
[1726685900995,0.21676232,60929.0,60928.0,0.00324]
[1726685901199,0.08576232,60929.0,60928.0,0.00124]
[1726685901621,0.09976232,60929.0,60928.0,0.00124]
[1726685902060,0.05376232,60929.0,60928.0,0.00124]
[1726685902275,0.11376232,60929.0,60928.0,0.00124]
[1726685902521,0.001646,60959.0,60935.0,0.123]
[1726685902734,0.24619021,60946.0,60943.0,0.164086]
[1726685902962,0.001646,60959.0,60944.0,0.03291]
[1726685903179,0.98450229,60955.0,60944.0,0.03291]
[1726685903415,0.00328169,60954.0,60944.0,0.03291]
[1726685903662,0.00328169,60953.0,60944.0,0.03291]
[1726685904318,0.00328169,60953.0,60944.0,0.003]
[1726685904782,0.03328169,60953.0,60944.0,0.003]
[1726685904997,0.03,60949.0,60944.0,0.008]
[1726685905217,0.00328169,60948.0,60928.0,0.00124]
[1726685905427,0.19067497,60947.0,60928.0,0.00124]
[1726685905702,0.00328169,60946.0,60944.0,0.001]
[1726685906131,0.03,60946.0,60944.0,0.001]
[1726685906789,0.03,60946.0,60928.0,0.00124]
[1726685907017,0.19067497,60947.0,60928.0,0.00124]
[1726685907278,0.03,60945.0,60944.0,0.001]
[1726685907463,0.19395666,60947.0,60928.0,0.00124]
[1726685907464,0.03,60942.0,60928.0,0.00124]
[1726685907697,0.00328169,60941.0,60928.0,0.00124]
[1726685908193,0.19067497,60947.0,60928.0,0.00124]
[1726685908415,0.03,60942.0,60928.0,0.00224]
[1726685908644,0.98450229,60946.0,60928.0,0.00124]
[1726685908645,0.03,60935.0,60928.0,0.00124]
[1726685908861,0.19067497,60934.0,60928.0,0.00224]
[1726685910184,0.19067497,60934.0,60929.0,0.36116]
[1726685910450,0.19067497,60934.0,60930.0,0.023]
[1726685910677,0.19067497,60945.0,60930.0,0.023]
[1726685910922,0.00328169,60944.0,60930.0,0.123]
[1726685911181,0.98778398,60943.0,60930.0,0.1]
[1726685911431,0.19067497,60945.0,60931.0,1.01741229]
[1726685911669,0.03,60967.0,60932.0,0.123]
[1726685911670,0.19067497,60957.0,60932.0,0.123]
[1726685911898,0.98450229,60951.0,60942.0,0.023]
[1726685912136,0.19067497,60957.0,60941.0,0.1]
[1726685912387,0.03328169,60956.0,60941.0,0.1]
[1726685912637,0.03,60949.0,60925.0,0.1]
[1726685912877,0.06,60955.0,60917.0,0.0031548]
[1726685912878,0.09,60941.0,60917.0,0.0031548]
[1726685913121,0.03,60936.0,60917.0,0.0031548]
[1726685913387,0.03328169,60935.0,60917.0,0.0031548]
[1726685913887,0.03328169,60935.0,60928.0,0.00224]
[1726685914142,0.03328169,60935.0,60928.0,0.00124]
[1726685914620,0.03528169,60935.0,60928.0,0.00524]
[1726685915093,0.002,60930.0,60928.0,0.00524]
[1726685915317,0.00328169,60929.0,60928.0,0.00524]
[1726685915826,0.03,60931.0,60928.0,0.00524]
[1726685916069,0.00328169,60930.0,60928.0,0.00524]
[1726685916537,0.00328169,60930.0,60928.0,0.00124]
[1726685916762,0.00428169,60930.0,60928.0,0.01024]
[1726685916997,0.032,60929.0,60928.0,0.01014]
[1726685917235,0.092,60929.0,60928.0,0.01014]
[1726685917475,1.23365899,60929.0,60928.0,0.01004]
[1726685917725,1.25942209,60929.0,60928.0,0.01004]
[1726685917982,0.092,60921.0,60917.0,0.0031548]
[1726685918228,1.56690665,60921.0,60920.0,0.000722]
[1726685918485,1.56690665,60921.0,60917.0,0.0031548]
[1726685918486,0.092,60918.0,60917.0,0.0031548]
[1726685918767,0.49790069,60918.0,60917.0,0.0031548]
[1726685919030,0.092,60916.0,60915.0,0.001644]
[1726685919290,0.092,60910.0,60898.0,0.000822]
[1726685919611,1.03318299,60910.0,60898.0,0.000822]
[1726685919777,0.19,60910.0,60898.0,0.000822]
[1726685920287,0.02577168,60910.0,60898.0,0.000822]
[1726685920527,0.03977168,60910.0,60898.0,0.000822]
[1726685921016,0.02577168,60910.0,60898.0,0.000822]
[1726685921295,0.35392368,60910.0,60909.0,0.0060618]
[1726685921529,1.80723968,60910.0,60909.0,0.0060618]
[1726685921762,1.80723968,60910.0,60890.0,0.0001]
[1726685921763,0.543418,60898.0,60890.0,0.0001]
[1726685921999,0.65794999,60892.0,60890.0,0.0001]
[1726685922259,0.88250869,60891.0,60890.0,0.0001]
[1726685922499,0.88250869,60891.0,60884.0,0.000822]
[1726685922500,1.036205,60886.0,60884.0,0.000822]
[1726685922752,1.036205,60886.0,60871.0,0.0001]
[1726685922753,0.092,60872.0,60871.0,0.0001]
[1726685922987,2.54409566,60872.0,60871.0,0.0001]
[1726685923225,2.40281666,60872.0,60871.0,0.0001]
[1726685923460,0.356289,60868.0,60861.0,0.0053408]
[1726685923700,0.092,60862.0,60861.0,0.0053408]
[1726685923957,0.092,60862.0,60861.0,0.0052408]
[1726685923958,2.70348468,60862.0,60861.0,0.0052408]
[1726685924224,0.19528169,60862.0,60861.0,0.0051408]
[1726685924462,0.47496769,60862.0,60861.0,0.0051408]
[1726685924701,0.47496769,60862.0,60848.0,0.000823]
[1726685924702,0.092,60849.0,60848.0,0.000823]
[1726685924947,0.38595666,60849.0,60848.0,0.000823]
[1726685925227,0.38595666,60849.0,60811.0,0.0001]
[1726685925228,0.032,60832.0,60811.0,0.0001]
[1726685925475,0.49034366,60832.0,60831.0,0.0011376]
[1726685925725,0.71703466,60832.0,60831.0,0.0011376]
[1726685926000,1.23319566,60832.0,60831.0,0.0010376]
[1726685926245,0.71703466,60832.0,60831.0,0.0010376]
[1726685926467,1.53445766,60832.0,60831.0,0.0010376]
[1726685926685,0.19067497,60832.0,60831.0,0.0010376]
[1726685926923,0.37976272,60832.0,60831.0,0.0010376]
[1726685927186,0.37976272,60832.0,60827.0,0.0059385]
[1726685927187,0.03,60829.0,60827.0,0.0059385]
[1726685927406,0.00328169,60828.0,60827.0,0.0069761]
[1726685927875,0.19067497,60832.0,60827.0,0.0069761]
[1726685928105,0.20167497,60832.0,60827.0,0.0069761]
[1726685928558,0.19067497,60832.0,60827.0,0.0069761]
[1726685928793,0.03,60831.0,60827.0,0.0069761]
[1726685929018,0.03,60830.0,60827.0,0.0069761]
[1726685929233,0.19067497,60832.0,60827.0,0.0069761]
[1726685929695,0.007,60828.0,60827.0,0.0069761]
[1726685930181,0.19067497,60832.0,60827.0,0.0069761]
[1726685931286,0.0257984,60831.0,60827.0,0.0069761]
[1726685934127,0.03,60828.0,60827.0,0.0069761]
[1726685934361,0.03328169,60828.0,60827.0,0.0069761]
[1726685934856,0.09528169,60828.0,60827.0,0.0069761]
[1726685935096,1.62155869,60828.0,60827.0,0.0067761]
[1726685935344,1.62155869,60828.0,60811.0,0.0001]
[1726685935345,0.092,60812.0,60811.0,0.0001]
[1726685935584,0.092,60812.0,60809.0,0.0031548]
[1726685935585,0.356446,60810.0,60809.0,0.0031548]
[1726685935828,0.256454,60807.0,60806.0,0.000723]
[1726685936239,0.256454,60807.0,60800.0,0.0058385]
[1726685936240,0.685411,60801.0,60800.0,0.0058385]
[1726685936482,0.696589,60801.0,60800.0,0.0058385]
[1726685936743,0.192,60801.0,60800.0,0.0058385]